Cogmind - Beta 13 @@@ ROGUE MODE // 2024.04.06 @ 07:58:38 Player: Millea Result: Escaped! Performance ------------- Evolutions (9) 4500 Regions Visited (21) 4200 Robots Destroyed (123) 615 Value Destroyed (3505) 3505 Prototype IDs (70) 1400 Alien Tech Used (2) 400 Bonus (9290) 9290 TOTAL SCORE: 23910 Bonus ------- High Alert Combat Kills 52 Follower Combat Kills 125 Entered DSFs 500 Aligned with FarCom 300 Met Zhirov 300 Met Warlord at Base 500 MAIN.C Attacked Warlord 500 Warlord Defense Kills 54 Met Warlord at Research 2000 Invited to Help at Command 2000 Win 3000 Friendly Fire -41 Cogmind --------- Core Integrity 1371/1600 Matter 300/300 Energy 344/350 System Corruption 24% Temperature Cool (12) Movement Flying (31) Location To Epsilon Eridani Parts ------- > --- POWER (2) -------- Quantum Reactor > --- PROPULSION (13) -- Xenon Bombardment Thruster Xenon Bombardment Thruster Field Propulsion Array Q-thruster > --- UTILITY (8) ------ Experimental Core Analyzer Experimental Core Analyzer Advanced Hacking Suite Improved System Shield > --- WEAPON (2) ------- Force Lance Plasma Lance > --- INVENTORY (5) ---- Improved Quantum Reactor Improved Energy Well (400) Advanced Reaction Control System Enhanced Quantum Rifle Heavy Proton Missile Launcher Peak State ------------ > --- POWER ------------ Quantum Reactor Improved Quantum Reactor > --- PROPULSION ------- Nuclear Pulse Array Impulse Thruster Impulse Thruster Field Propulsion Array Q-thruster Q-thruster Q-thruster Q-thruster Q-thruster Impulse Thruster Array > --- UTILITY ---------- Large Storage Unit Experimental Core Analyzer Advanced Reaction Control System Layered Light Armor Plating Improved System Shield Advanced System Shield Stealth Drone Bay > --- WEAPON ----------- Force Lance Plasma Lance > --- INVENTORY -------- Quantum Reactor Nuclear Pulse Thruster Impulse Thruster Impulse Thruster Impulse Thruster Q-thruster Advanced Coolant Injector Improved Energy Well Advanced Hacking Suite Advanced Hacking Suite Enhanced Quantum Rifle Improved Matter Neutralizer Helical Railgun Heavy Proton Missile Launcher Micro-nuke Launcher [Rating: 190] Favorites ----------- Power Light Nuclear Core Engine Light Ion Engine Power Core Light Nuclear Core Reactor Quantum Reactor Propulsion Cooled Nuclear Pulse Thruster Treads Light Treads Leg Aluminum Leg Wheel Wheel Hover Unit Improved Antigrav System Flight Unit Cooled Nuclear Pulse Thruster Utility System Shield Device Improved Heat Sink Storage Small Storage Unit Processor Core Analyzer Hackware System Shield Protection Experimental Core Shielding Weapon Great Axe Energy Gun Improved Medium Laser Energy Cannon Vortex Cannon Ballistic Gun Helical Railgun Launcher Rocket Launcher Impact Weapon Flail Slashing Weapon Great Axe Piercing Weapon Force Lance Special Melee Weapon Dirty Datajack Build | -11 -10 -10 -10 -9 -8 -7 -6 -6 -5 -5 -5 -5 -4 -4 -4 -4 -4 -3 -3 -2 -1 ------- Run | Yrd Mat Min Exi Min Mat Fac Fac DSF Fac Upp Upp War Pro Fac Upp Upp Zhi Pro Res Res Acc Slots Evolved 18 | . . . . . 4 2 2 . 2 . . . . 2 . . . . 2 2 2 Power 1 | . . . . . . . 1 . . . . . . . . . . . . . . Propulsion 11 | . . . . . 2 2 . . 1 . . . . 2 . . . . 2 1 1 Utility 6 | . . . . . 2 . 1 . 1 . . . . . . . . . . 1 1 Weapon . | . . . . . . . . . . . . . . . . . . . . . . Parts Attached 211 | 6 9 5 1 4 18 18 1 6 12 1 3 2 5 10 2 8 9 3 34 36 18 Power 27 | 1 . 1 . . 4 2 . . 3 . . . 1 1 1 1 . . 7 4 1 Engine 12 | 1 . . . . 3 . . . 1 . . . 1 1 . . . . 5 . . Core 8 | . . 1 . . 1 2 . . 2 . . . . . . 1 . . 1 . . Reactor 7 | . . . . . . . . . . . . . . . 1 . . . 1 4 1 Propulsion 78 | 2 3 3 . . 6 14 . 6 6 . . . . 3 . 1 . . 9 16 9 Treads 4 | 2 . . . . . . . . . . . . . . . . . . . 2 . Leg 18 | . 3 3 . . 2 6 . . . . . . . . . . . . . 4 . Wheel 4 | . . . . . . . . . . . . . . . . . . . 4 . . Hover 5 | . . . . . . 1 . . . . . . . . . 1 . . 3 . . Flight 47 | . . . . . 4 7 . 6 6 . . . . 3 . . . . 2 10 9 Utility 71 | 1 1 1 . 3 6 . 1 . 2 . 2 2 4 5 1 2 9 3 11 11 6 Device 27 | . 1 1 . 1 2 . . . 1 . . 1 2 3 . 1 5 2 1 5 1 Storage 7 | 1 . . . . . . . . . . . . . . . . . . 5 1 . Processor 13 | . . . . 2 1 . 1 . . . 1 . . . 1 . . . 3 3 1 Hackware 9 | . . . . . 3 . . . 1 . . . . . . . 1 1 1 . 2 Protection 15 | . . . . . . . . . . . 1 1 2 2 . 1 3 . 1 2 2 Artifact . | . . . . . . . . . . . . . . . . . . . . . . Weapon 35 | 2 5 . 1 1 2 2 . . 1 1 1 . . 1 . 4 . . 7 5 2 Energy Gun 9 | 1 5 . . . . . . . . . . . . . . . . . 2 1 . Energy Cannon 4 | . . . . . . . . . . . . . . . . . . . 4 . . Ballistic Gun 2 | 1 . . . . . . . . . . . . . . . . . . . 1 . Ballistic Cannon . | . . . . . . . . . . . . . . . . . . . . . . Launcher 3 | . . . . . 1 . . . . . . . . . . 1 . . . 1 . Special Weapon . | . . . . . . . . . . . . . . . . . . . . . . Impact Weapon 3 | . . . . . . . . . 1 . . . . . . 1 . . 1 . . Slashing Weapon 8 | . . . 1 1 1 2 . . . . 1 . . 1 . 1 . . . . . Piercing Weapon 5 | . . . . . . . . . . . . . . . . 1 . . . 2 2 Special Melee Weapon 1 | . . . . . . . . . . 1 . . . . . . . . . . . Unidentified Prototypes 18 | . 1 . . . . . . . 2 . . . . . . . 4 . 4 6 1 Corrupted Parts 3 | . . . . . . . . . . . . . . . . . . . . 1 2 System Corruption 27 | . . . . . . . . . . . . . . . . . . . . 10 17 Parts Lost 69 | . . 1 . . 4 11 . . 8 . . . 1 2 . 3 . 12 9 . 18 Power 9 | . . . . . 1 1 . . 2 . . . . . . 2 . 1 2 . . Propulsion 41 | . . 1 . . 1 9 . . 4 . . . . 2 . 1 . 7 3 . 13 Utility 15 | . . . . . 2 . . . 2 . . . 1 . . . . 3 2 . 5 Weapon 4 | . . . . . . 1 . . . . . . . . . . . 1 2 . . Highest Loss Streak 12 | . . 1 . . 3 4 . . 5 . . . 1 1 . 2 . 12 9 . 11 To Critical Strikes . | . . . . . . . . . . . . . . . . . . . . . . Average Slot Usage (%) 82 | . 96 99 81 94 86 78 84 75 85 88 90 96 100 94 89 88 84 63 40 75 80 Engine 3 | . 14 2 . . 6 1 . . . 5 5 5 5 5 2 . . . 2 2 . Core 4 | . . 11 14 14 2 3 6 6 5 5 5 5 5 5 5 2 . . . . . Reactor 1 | . . . . . . . . . . . . . . . 2 5 5 2 . 5 8 Treads 2 | . 19 . . . . . . . . . . . . . . . . . . . . Leg 9 | . 7 27 28 28 15 4 40 13 . . . . . . . . . . . 1 . Flight 16 | . . . . . 12 20 . 15 39 41 41 41 41 41 36 36 36 26 . 31 38 Device 7 | . 11 14 14 14 3 . . . 1 . . 1 7 7 10 12 13 11 3 5 5 Storage 5 | . 14 14 14 5 . . . . . . . . . . . . . . 2 4 4 Processor 4 | . . . . 8 13 7 11 13 11 11 11 11 11 7 5 3 . . 4 4 4 Hackware 7 | . . . . . 13 23 20 20 18 11 11 11 11 10 10 10 11 10 11 8 9 Protection 1 | . . . . . . . . . . . 2 5 3 5 5 5 5 3 1 1 2 Energy Gun 6 | . 18 28 7 . . . . . . . . . . . . . . . 2 2 . Ballistic Gun 1 | . 9 . . . . . . . . . . . . . . . . . . 3 . Slashing Weapon 3 | . . . 2 23 17 14 6 6 5 5 5 5 5 5 5 4 5 3 . . . Naked Turns . | . . . . . . . . . . . . . . . . . . . . . . Heaviest Build 84 | 10 15 17 17 21 16 12 9 9 34 34 34 36 41 42 42 41 30 27 33 83 84 Greatest Support 120 | 40 40 20 20 20 40 120 120 36 42 42 42 42 42 52 42 57 42 42 46 91 98 Greatest Overweight (x) 2 | . 1 1 . 1 1 2 . 1 1 . . . . 1 . . . . 2 1 . Average Overweight (x) . | . . . . . . . . . . . . . . . . . . . . . . Largest Inventory Capacity 15 | 8 8 8 8 8 5 5 5 5 5 5 5 5 5 5 5 5 5 5 10 15 15 Average Capacity 7 | 7 8 8 8 6 5 5 5 5 5 5 5 5 5 5 5 5 5 5 6 13 14 Most Carried 15 | 4 8 8 8 8 5 5 5 5 5 5 5 5 5 5 5 5 5 5 10 15 15 Average Carried 7 | 2 7 8 8 6 4 5 5 5 4 5 4 4 4 3 5 4 4 4 5 13 13 Final Capacity 15 | 8 8 8 8 5 5 5 5 5 5 5 5 5 5 5 5 5 5 5 10 15 5 Final Carried 15 | 4 8 8 8 5 5 5 5 5 5 5 5 5 5 5 5 5 5 5 10 15 5 Class Distribution -------------------- 41% | Hacker-Sprinter 20% | Scavenger-Mutant 19% | Mutant 15% | Hacker-Mutant Dominant Class ---------------- Mutant | -10/Materials Mutant | -10/Mines Scavenger-Mutant | -10/Exiles Mutant | -9/Mines Scavenger-Gladiator | -8/Materials Hacker-Sprinter | -7/Factory Hacker-Mutant | -6/Factory Hacker-Mutant | -6/DSF Hacker-Sprinter | -5/Factory Hacker-Sprinter | -5/Upper Caves Hacker-Sprinter | -5/Upper Caves Hacker-Sprinter | -5/Warlord Hacker-Sprinter | -4/Proximity Caves Hacker-Sprinter | -4/Factory Hacker-Sprinter | -4/Upper Caves Hacker-Sprinter | -4/Upper Caves Hacker-Sprinter | -4/Zhirov Hacker-Sprinter | -3/Proximity Caves Hacker-Mutant | -3/Research Hacker-Sprinter | -2/Research Hacker-Sprinter | -1/Access Resources | -11 -10 -10 -10 -9 -8 -7 -6 -6 -5 -5 -5 -5 -4 -4 -4 -4 -4 -3 -3 -2 -1 ----------- Run | Yrd Mat Min Exi Min Mat Fac Fac DSF Fac Upp Upp War Pro Fac Upp Upp Zhi Pro Res Res Acc Matter Collected 2391 | 260 151 59 . 98 177 155 . . 120 30 20 10 56 . 8 252 . 131 324 370 170 Remotely . | . . . . . . . . . . . . . . . . . . . . . . Salvage Created 5302 | . 421 447 . 268 865 945 . . 503 . . 10 77 . . 167 . 96 853 . 650 Parts 252 | . 33 24 . 9 51 45 . . 15 . . 1 11 . . 8 . . 19 . 36 Haulers Intercepted 12 | . 2 . . . 3 3 . . 3 . . . . . . . . . 1 . . Recyclers Shooed 3 | . 1 . . . . . . . . . . . . . . . . . 2 . . Parts Field Recycled . | . . . . . . . . . . . . . . . . . . . . . . Retrieved Matter . | . . . . . . . . . . . . . . . . . . . . . . Parts Self-Destructed 16 | . . . . . . . . . . . 1 . 10 . . 4 . 1 . . . Prevented 4 | . . . . . . . . . . . 1 . . . 3 . . . . . . Kills | -11 -10 -10 -10 -9 -8 -7 -6 -6 -5 -5 -5 -5 -4 -4 -4 -4 -4 -3 -3 -2 -1 ------- Run | Yrd Mat Min Exi Min Mat Fac Fac DSF Fac Upp Upp War Pro Fac Upp Upp Zhi Pro Res Res Acc Combat Hostiles Destroyed 82 | . 11 12 . 3 17 16 . . . . . 1 5 . . 5 . . 3 . 9 Melee 49 | . . . . 3 14 16 . . . . . 1 5 . . 1 . . . . 9 Guns 23 | . 11 12 . . . . . . . . . . . . . . . . . . . Cannons 2 | . . . . . . . . . . . . . . . . . . . 2 . . AOE 7 | . . . . . 3 . . . . . . . . . . 4 . . . . . Classes Destroyed 16 | . 5 . . 4 3 . . . . . . . 1 . . 1 . . 1 . 1 Worker 8 | . . . . 2 . 1 . . . . . . . . . . . . 5 . . Builder 2 | . . . . 1 . . . . . . . . . . . . . . 1 . . Hauler 12 | . 2 . . . 3 3 . . 3 . . . . . . . . . 1 . . Recycler 9 | . . . . 1 2 1 . . 1 . . . . . . . . . 4 . . Operator 4 | . 1 . . . 1 . . . . . . . . . . . . . 1 . 1 Drone 2 | . . . . . . . . . . . . . 2 . . . . . . . . Watcher 6 | . 1 . . . . 1 . . 1 . . . . . . . . . . . 3 Swarmer 36 | . 6 3 . . 5 8 . . . . . 1 3 . . 5 . . . . 5 Cutter 3 | . . . . . 3 . . . . . . . . . . . . . . . . Grunt 27 | . 5 9 . 2 5 6 . . . . . . . . . . . . . . . Brawler 1 | . . . . . 1 . . . . . . . . . . . . . . . . Duelist 2 | . . . . 1 1 . . . . . . . . . . . . . . . . Sentry 6 | . . . . . 2 2 . . . . . . . . . . . . 1 . 1 Hunter 1 | . . . . . . . . . . . . . . . . . . . . . 1 Programmer 4 | . . . . . . . . . . . . . . . . . . . 2 . 2 Packrat 1 | . . . . . . . . . . . . . . . . . . 1 . . . Samaritan 1 | . . . . . . . . . . . . . . . . 1 . . . . . Best Kill Streak 10 | . 6 3 . 7 10 4 . . 3 . . 1 3 . . 4 . . 3 . 3 Combat Bots Only 9 | . 5 3 . 3 9 4 . . . . . 1 3 . . 4 . . 3 . 3 Max Kills in Single Turn 3 | . 2 2 . 1 3 1 . . 1 . . 1 1 . . 1 . 1 1 . 1 Gunslinging 1 | . 1 1 . . . . . . . . . . . . . . . . . . . Exploded 3 | . . . . . 3 . . . . . . . . . . 1 . . . . . Melee 1 | . . . . 1 1 1 . . . . . 1 1 . . 1 . . . . 1 Uniques/NPCs Destroyed . | . . . . . . . . . . . . . . . . . . . . . . Combat | -11 -10 -10 -10 -9 -8 -7 -6 -6 -5 -5 -5 -5 -4 -4 -4 -4 -4 -3 -3 -2 -1 -------- Run | Yrd Mat Min Exi Min Mat Fac Fac DSF Fac Upp Upp War Pro Fac Upp Upp Zhi Pro Res Res Acc Hostile Shots Fired 721 | . 48 25 . 10 36 86 . 9 66 5 2 3 16 8 2 47 . 109 70 28 151 Missed 292 | . 18 6 . 1 16 28 . 5 30 2 1 1 4 3 1 17 . 56 17 18 68 Damage Taken 8481 | . 314 225 . 132 354 717 . 157 620 65 26 26 194 91 16 557 . 1595 1272 251 1869 Core 2543 | . 53 39 . 55 69 232 . 109 169 . . . 36 . . 94 . 953 449 56 229 Absorbed by Shields 172 | . . . . 49 59 . . 4 . . . . . . . . . 18 . . 42 Redirected to Shielding 105 | . . . . . . . . . . . . 8 49 . . . . . 36 12 . Ignored by Resistances 184 | . . . . . . . . . 43 . . . . . . . . . . . 141 Regen/Repaired (Parts) 71 | . . . . . . 34 . . . . . 37 . . . . . . . . . Core Remaining (%) 70 | 100 . . . 41 87 66 . 87 . . . . 79 . . . . 8 60 96 85 Volleys Fired 125 | . 48 21 . . 2 . . . . . . . . . . 7 . . 43 4 . Largest 2 | . 2 2 . . 1 . . . . . . . . . . 1 . . 2 1 . Hottest 159 | . 112 112 . . 33 . . . . . . . . . . 33 . . 159 65 . Shots Fired 196 | . 94 43 . . 2 . . . . . . . . . . 7 . . 46 4 . Gun 176 | . 94 43 . . . . . . . . . . . . . . . . 35 4 . Cannon 11 | . . . . . . . . . . . . . . . . . . . 11 . . Launcher 9 | . . . . . 2 . . . . . . . . . . 7 . . . . . Special . | . . . . . . . . . . . . . . . . . . . . . . Kinetic 34 | . 34 . . . . . . . . . . . . . . . . . . . . Thermal 140 | . 60 43 . . . . . . . . . . . . . . . . 33 4 . Explosive 9 | . . . . . 2 . . . . . . . . . . 7 . . . . . Electromagnetic 4 | . . . . . . . . . . . . . . . . . . . 4 . . Entropic 9 | . . . . . . . . . . . . . . . . . . . 9 . . Robot Hit Streak 10 | . 6 10 . . . . . . . . . . . . . 2 . . 6 3 . Robot Miss Streak 7 | . 7 4 . . . . . . . . . . . . . 3 . . 2 1 . Penetration Max . | . . . . . . . . . . . . . . . . . . . . . . Secondary Targets 4 | . 3 1 . . . . . . . . . . . . . . . . . . . Max Gunslinging Chain 1 | . 1 1 . . . . . . . . . . . . . . . . . . . Shots Hit Robots 308 | . 54 25 . 13 38 44 . . 20 9 3 1 7 2 . 10 . 1 56 3 22 Core Hits 142 | . 24 16 . 8 21 21 . . 4 2 1 1 6 . . 10 . . 15 1 12 Critical Kills 1 | . . . . . . . . . . . . . . . . . . . 1 . . Critical Parts Destroyed 7 | . 1 . . . . . . . . . . . . . . . . . 6 . . Critical Strikes 30 | . 3 3 . 1 3 4 . . 3 . . . 1 . . 1 . . 8 . 3 Burn 5 | . 2 3 . . . . . . . . . . . . . . . . . . . Destroy 1 | . 1 . . . . . . . . . . . . . . . . . . . . Smash 7 | . . . . . . . . . . . . . . . . . . . 7 . . Sever 12 | . . . . 1 3 4 . . 3 . . . 1 . . . . . . . . Impale 4 | . . . . . . . . . . . . . . . . 1 . . . . 3 Sunder 1 | . . . . . . . . . . . . . . . . . . . 1 . . Melee Attacks 297 | . . . . 16 39 57 . . 21 15 6 3 12 9 . 14 . 5 33 15 52 Impact 33 | . . . . . . . . . . . . . . . . . . . 33 . . Slashing 173 | . . . . 16 39 57 . . 21 6 1 3 11 9 . 6 . 4 . . . Piercing 91 | . . . . . . . . . . 9 5 . 1 . . 8 . 1 . 15 52 Sneak Attacks 34 | . . . . 4 6 5 . . 4 3 . . . 1 . 3 . 1 5 . 2 Combat Hostiles 7 | . . . . . 2 . . . . 2 . . . . . 1 . . . . 2 Follow-up Attacks 7 | . . . . 2 1 2 . . . . . . . . . . . . . . 2 Damage Inflicted 12657 | . 643 454 . 700 2340 2214 . . 1102 41 10 47 263 160 . 846 . 81 2297 92 1367 Guns 1940 | . 643 454 . . . . . . . . . . . . . . . . 751 92 . Cannons 500 | . . . . . . . . . . . . . . . . . . . 500 . . Explosions 622 | . . . . . 234 . . . . . . . . . . 388 . . . . . Melee 9595 | . . . . 700 2106 2214 . . 1102 41 10 47 263 160 . 458 . 81 1046 . 1367 Ramming . | . . . . . . . . . . . . . . . . . . . . . . Kinetic 140 | . 140 . . . . . . . . . . . . . . . . . . . . Thermal 1767 | . 503 454 . . . . . . . . . . . . . . . . 718 92 . Explosive 622 | . . . . . 234 . . . . . . . . . . 388 . . . . . Electromagnetic 84 | . . . . . . . . . . . . . . . . . . . 84 . . Impact 1046 | . . . . . . . . . . . . . . . . . . . 1046 . . Slashing 6752 | . . . . 700 2106 2214 . . 1102 . . 47 260 160 . 82 . 81 . . . Piercing 1797 | . . . . . . . . . . 41 10 . 3 . . 376 . . . . 1367 Entropic 449 | . . . . . . . . . . . . . . . . . . . 449 . . Highest Corruption 24 | . 3 3 3 3 . . . . . . . . . . . . . . 14 10 24 Average Corruption 4 | . 2 3 3 3 . . . . . . . . . . . . . . 12 10 21 Corruption Purged . | . . . . . . . . . . . . . . . . . . . . . . Corruption Blocked 20 | . . . . . . . . . . . . . . . . . . . . 20 . Effects 74 | . 10 9 22 1 . . . . . . . . . . . . . . 22 . 10 Message Errors 23 | . 4 3 9 1 . . . . . . . . . . . . . . 5 . 1 Matter Fused 17 | . 3 1 7 . . . . . . . . . . . . . . . 3 . 3 Heat Flow Errors 3 | . . . 2 . . . . . . . . . . . . . . . 1 . . Energy Discharges 12 | . 3 2 3 . . . . . . . . . . . . . . . 3 . 1 Parts Rejected 1 | . . . . . . . . . . . . . . . . . . . . . 1 Parts Fused 1 | . . 1 . . . . . . . . . . . . . . . . . . . Data Loss (minor) 8 | . . 1 . . . . . . . . . . . . . . . . 6 . 1 Data Loss (major) 2 | . . . 1 . . . . . . . . . . . . . . . 1 . . Misfires 2 | . . 1 . . . . . . . . . . . . . . . . 1 . . Alerts 1 | . . . . . . . . . . . . . . . . . . . 1 . . Misdirections 4 | . . . . . . . . . . . . . . . . . . . 1 . 3 Overload Shots . | . . . . . . . . . . . . . . . . . . . . . . Overflow Damage 1313 | . . . . 41 179 135 . . 119 . . . . . . 77 . 72 482 . 208 Projectiles 33 | . . . . . . . . . . . . . . . . . . . 33 . . Explosions 74 | . . . . . 27 . . . . . . . . . . 47 . . . . . Melee 1206 | . . . . 41 152 135 . . 119 . . . . . . 30 . 72 449 . 208 Knockbacks 6 | . . . . . . . . . . . . . . . . . . . 6 . . Impact 5 | . . . . . . . . . . . . . . . . . . . 5 . . Kinetic . | . . . . . . . . . . . . . . . . . . . . . . Secondary 1 | . . . . . . . . . . . . . . . . . . . 1 . . Self-Inflicted Damage . | . . . . . . . . . . . . . . . . . . . . . . Shots . | . . . . . . . . . . . . . . . . . . . . . . Rammed 1 | . . . . . . . . . . . . . . . . . . . 1 . . Targets Rammed 1 | . . . . . . . . . . . . . . . . . . . 1 . . Kicked . | . . . . . . . . . . . . . . . . . . . . . . Crushed . | . . . . . . . . . . . . . . . . . . . . . . Highest Temperature 336 | . 240 204 169 . 2 . . . 195 268 153 192 7 252 . 94 8 . 177 336 290 Average Temperature 93 | . 86 74 79 . 2 . . . 54 86 72 86 7 74 . 30 8 . 111 128 76 Received Heat Transfer 830 | . 120 111 . 20 126 198 . . 66 18 . . 12 9 9 105 . 9 18 9 . Effects 6 | . 1 . . . . . . . . . . . . . . . . . . 5 . Shutdowns 2 | . . . . . . . . . . . . . . . . . . . . 2 . Energy Bleed 2 | . . . . . . . . . . . . . . . . . . . . 2 . Interference 2 | . 1 . . . . . . . . . . . . . . . . . . 1 . Siege Activations . | . . . . . . . . . . . . . . . . . . . . . . Robots Corrupted 1 | . . . . . . . . . . . . . . . . . . . 1 . . Combat Hostiles . | . . . . . . . . . . . . . . . . . . . . . . Parts Fried 7 | . . . . . . . . . . . . . . . . . . . 7 . . Impact Corruptions 20 | . . . . . . . . . . . . . . . . . . . 20 . . Robots Melted . | . . . . . . . . . . . . . . . . . . . . . . Combat Hostiles . | . . . . . . . . . . . . . . . . . . . . . . Parts Melted 7 | . 4 3 . . . . . . . . . . . . . . . . . . . Heat Transferred 3460 | . 1240 1184 . . . . . . . . . . . . . . . . 925 111 . Parts Sabotaged . | . . . . . . . . . . . . . . . . . . . . . . Parts Stolen . | . . . . . . . . . . . . . . . . . . . . . . Parts Stripped . | . . . . . . . . . . . . . . . . . . . . . . Power Chain Reactions . | . . . . . . . . . . . . . . . . . . . . . . Alert | -11 -10 -10 -10 -9 -8 -7 -6 -6 -5 -5 -5 -5 -4 -4 -4 -4 -4 -3 -3 -2 -1 ------- Run | Yrd Mat Min Exi Min Mat Fac Fac DSF Fac Upp Upp War Pro Fac Upp Upp Zhi Pro Res Res Acc Peak Influence 545 | . 186 287 . 111 545 487 168 30 146 . . . . 421 . . . . 241 136 218 Initial 206 | . . 67 . . 42 54 168 15 15 . . . . 206 . . . . 81 32 48 Average 122 | . 101 195 . 47 264 214 39 21 64 . . . . 286 . . . . 79 66 102 Maximum Alert Level 2 | . . 1 . . 2 2 . . . . . . . 2 . . . . 1 . 1 Low Security (%) 81 | 100 100 66 . 100 39 45 100 100 100 . . . . . . . . . 87 100 97 Level 1 14 | . . 33 . . 30 42 . . . . . . . 81 . . . . 12 . 2 Level 2 3 | . . . . . 30 11 . . . . . . . 18 . . . . . . . Level 3 . | . . . . . . . . . . . . . . . . . . . . . . Level 4 . | . . . . . . . . . . . . . . . . . . . . . . Level 5 . | . . . . . . . . . . . . . . . . . . . . . . High Security . | . . . . . . . . . . . . . . . . . . . . . . Max Security . | . . . . . . . . . . . . . . . . . . . . . . Squads Dispatched 32 | . 2 . . 1 3 8 1 1 3 . . . . 4 . 1 . . 1 2 5 Investigation 13 | . 1 . . 1 . 3 1 . . . . . . 2 . . . . . 2 3 Extermination 3 | . . . . . . 1 . . . . . . . . . . . . 1 . 1 Reinforcement 9 | . 1 . . . 1 2 . 1 2 . . . . 1 . . . . . . 1 Assault 2 | . . . . . . . . . . . . . . 1 . 1 . . . . . Garrison 5 | . . . . . 2 2 . . 1 . . . . . . . . . . . . Intercept . | . . . . . . . . . . . . . . . . . . . . . . Searches Triggered 1 | . . . . . . . . . . . . . . 1 . . . . . . . Construction Impeded . | . . . . . . . . . . . . . . . . . . . . . . Haulers Reinforced 2 | . . . . . . 1 . . 1 . . . . . . . . . . . . Active Scanning Responses . | . . . . . . . . . . . . . . . . . . . . . . Cargo Convoy Interrupts . | . . . . . . . . . . . . . . . . . . . . . . Stealth | -11 -10 -10 -10 -9 -8 -7 -6 -6 -5 -5 -5 -5 -4 -4 -4 -4 -4 -3 -3 -2 -1 --------- Run | Yrd Mat Min Exi Min Mat Fac Fac DSF Fac Upp Upp War Pro Fac Upp Upp Zhi Pro Res Res Acc Distress Signals 25 | . 1 . . . 4 1 . . 3 . . . . . . . . 3 3 5 5 Communications Jammed . | . . . . . . . . . . . . . . . . . . . . . . Distress Signals . | . . . . . . . . . . . . . . . . . . . . . . Times Spotted 250 | . 23 11 . 6 23 25 . 4 14 10 3 3 10 10 2 31 . 18 17 14 26 Peak Tracking Total 15 | . 5 3 . 3 7 6 . 4 8 8 3 4 4 4 2 9 . 15 5 4 11 Tactical Retreats 33 | . 1 . . . 1 3 . . 3 3 . 1 1 2 1 6 . 1 2 5 3 Traps | -11 -10 -10 -10 -9 -8 -7 -6 -6 -5 -5 -5 -5 -4 -4 -4 -4 -4 -3 -3 -2 -1 ------- Run | Yrd Mat Min Exi Min Mat Fac Fac DSF Fac Upp Upp War Pro Fac Upp Upp Zhi Pro Res Res Acc Traps Triggered 16 | . 4 . . . . 2 . 2 2 . . . . 2 . . . 1 . . 3 Indirectly . | . . . . . . . . . . . . . . . . . . . . . . Trap Hack Attempts . | . . . . . . . . . . . . . . . . . . . . . . Triggered . | . . . . . . . . . . . . . . . . . . . . . . Disarmed . | . . . . . . . . . . . . . . . . . . . . . . Reprogrammed 1 | . . . . . 1 . . . . . . . . . . . . . . . . Reused . | . . . . . . . . . . . . . . . . . . . . . . Traps Extracted . | . . . . . . . . . . . . . . . . . . . . . . Installed . | . . . . . . . . . . . . . . . . . . . . . . Triggered 14 | . . . . . . . . . . . . 8 2 . 4 . . . . . . Machines | -11 -10 -10 -10 -9 -8 -7 -6 -6 -5 -5 -5 -5 -4 -4 -4 -4 -4 -3 -3 -2 -1 ---------- Run | Yrd Mat Min Exi Min Mat Fac Fac DSF Fac Upp Upp War Pro Fac Upp Upp Zhi Pro Res Res Acc Machines Disabled 8 | . . 2 . . . . . . . . . . . 1 . . . . 3 1 1 Max in Single Turn 1 | . . 1 . . . . . . . . . . . 1 . . . . 1 1 1 Garrison Access 4 | . . . . . . . . . 1 . . . . 2 . . . . . 1 . Machines Repaired . | . . . . . . . . . . . . . . . . . . . . . . Machines Dismantled . | . . . . . . . . . . . . . . . . . . . . . . Machines Sabotaged . | . . . . . . . . . . . . . . . . . . . . . . Overloaded Fab Kills . | . . . . . . . . . . . . . . . . . . . . . . Hacking | -11 -10 -10 -10 -9 -8 -7 -6 -6 -5 -5 -5 -5 -4 -4 -4 -4 -4 -3 -3 -2 -1 --------- Run | Yrd Mat Min Exi Min Mat Fac Fac DSF Fac Upp Upp War Pro Fac Upp Upp Zhi Pro Res Res Acc Machines Accessed 79 | . 9 . 1 2 4 5 2 . 9 1 . 12 . 6 1 3 6 1 7 5 5 Terminals 38 | . 8 . . . 4 3 2 . 5 . . . . 3 . . . 1 5 2 5 Fabricators 2 | . . . . . . . . . 1 . . . . . . . . . . 1 . Repair Stations 1 | . . . . . . 1 . . . . . . . . . . . . . . . Recycling Units 6 | . 1 . . . . 1 . . 2 . . . . . . . . . 2 . . Scanalyzers . | . . . . . . . . . . . . . . . . . . . . . . Garrison Access 6 | . . . . . . . . . 1 . . . . 3 . . . . . 2 . Total Hacks 261 | . 30 . 1 2 22 24 7 . 48 1 . 19 . 17 1 5 18 6 25 16 19 Successful 137 | . 14 . 1 2 11 12 4 . 27 1 . 19 . 6 1 5 18 6 4 2 4 Failed 121 | . 15 . . . 10 12 3 . 21 . . . . 11 . . . . 20 14 15 Catastrophic 32 | . 2 . . . 2 5 2 . 4 . . . . 1 . . . . 8 6 2 Database Lockouts 3 | . 1 . . . 1 . . . . . . . . . . . . . 1 . . Manual 114 | . 19 . 1 . 13 9 3 . 28 . . . . 10 . . . . 18 6 7 Terminals 154 | . 26 . . . 22 16 7 . 29 . . . . 9 . . . 6 13 7 19 Fabricators 6 | . . . . . . . . . 4 . . . . . . . . . . 2 . Repair Stations 4 | . . . . . . 4 . . . . . . . . . . . . . . . Recycling Units 34 | . 4 . . . . 4 . . 14 . . . . . . . . . 12 . . Scanalyzers . | . . . . . . . . . . . . . . . . . . . . . . Garrison Access 16 | . . . . . . . . . 1 . . . . 8 . . . . . 7 . Terminal Hacks 91 | . 6 . 1 2 7 5 3 . 8 1 . 19 . 1 1 5 18 6 4 1 3 Record 29 | . . . . . . . . . . . . 12 . . . 3 7 6 1 . . Part Schematic 5 | . . . . . . . . . 1 . . . . . . . 4 . . . . Robot Analysis 11 | . 3 . . . 1 1 . . 3 . . . . . . . 3 . . . . Prototype ID Bank 16 | . 1 . . . 1 1 . . 1 . . 5 . . . . 4 . 2 1 . Open Door 9 | . . . . 2 . . . . . 1 . 2 . . 1 2 . . . . 1 Open DSF 1 | . . . . . . . 1 . . . . . . . . . . . . . . Level Access Points 2 | . . . . . . . . . . . . . . . . . . . 1 . 1 Branch Access Points 2 | . . . . . . . . . 1 . . . . . . . . . . . 1 Terminal Index 2 | . 1 . . . . 1 . . . . . . . . . . . . . . . Alert Level 1 | . . . . . . . 1 . . . . . . . . . . . . . . Unreport Threat 7 | . . . . . 3 2 1 . 1 . . . . . . . . . . . . Locate Traps 2 | . . . . . 1 . . . 1 . . . . . . . . . . . . Reprogram Traps 1 | . . . . . 1 . . . . . . . . . . . . . . . . Transport Status 1 | . 1 . . . . . . . . . . . . . . . . . . . . Zone Layout 1 | . . . . . . . . . . . . . . 1 . . . . . . . Derelict Proto ID Bank 1 | . . . 1 . . . . . . . . . . . . . . . . . . Fabricator Hacks 1 | . . . . . . . . . 1 . . . . . . . . . . . . Network Status 1 | . . . . . . . . . 1 . . . . . . . . . . . . Repair Station Hacks 3 | . . . . . . 3 . . . . . . . . . . . . . . . Scan Component 2 | . . . . . . 2 . . . . . . . . . . . . . . . Repair 1 | . . . . . . 1 . . . . . . . . . . . . . . . Recycling Unit Hacks 8 | . 2 . . . . . . . 6 . . . . . . . . . . . . Recycle Component 1 | . . . . . . . . . 1 . . . . . . . . . . . . Process 1 | . . . . . . . . . 1 . . . . . . . . . . . . Retrieve Matter 2 | . . . . . . . . . 2 . . . . . . . . . . . . Retrieve Components 4 | . 2 . . . . . . . 2 . . . . . . . . . . . . Scanalyzer . | . . . . . . . . . . . . . . . . . . . . . . Garrison Access Hacks 3 | . . . . . . . . . 1 . . . . 1 . . . . . 1 . Seal Access 3 | . . . . . . . . . 1 . . . . 1 . . . . . 1 . Unauthorized Hacks 31 | . 6 . . . 4 4 1 . 11 . . . . 4 . . . . . . 1 Terminals 21 | . 5 . . . 4 2 1 . 4 . . . . 4 . . . . . . 1 Assimilate 3 | . . . . . . . . . 2 . . . . 1 . . . . . . . Botnet 17 | . 5 . . . 4 2 1 . 1 . . . . 3 . . . . . . 1 Operators 1 | . . . . . . . . . 1 . . . . . . . . . . . . Fabricators 1 | . . . . . . . . . 1 . . . . . . . . . . . . Fabnet 1 | . . . . . . . . . 1 . . . . . . . . . . . . Repair Stations . | . . . . . . . . . . . . . . . . . . . . . . Recycling Units 9 | . 1 . . . . 2 . . 6 . . . . . . . . . . . . Monitor 2 | . . . . . . . . . 2 . . . . . . . . . . . . Reject 3 | . . . . . . 1 . . 2 . . . . . . . . . . . . Mask 4 | . 1 . . . . 1 . . 2 . . . . . . . . . . . . Scanalyzers . | . . . . . . . . . . . . . . . . . . . . . . Garrison Access . | . . . . . . . . . . . . . . . . . . . . . . Data Cores Recovered 1 | . . . . . 1 . . . . . . . . . . . . . . . . Used 1 | . . . . . 1 . . . . . . . . . . . . . . . . Hacking Detections 46 | . 9 . . . 4 5 1 . 7 . . . . 5 . . . . 6 4 5 Full Trace Events 10 | . . . . . . 2 1 . . . . . . 2 . . . . . 2 3 Feedback Events 1 | . . . . . . . . . . . . . . . . . . . . . 1 Hackware Fried 1 | . . . . . . . . . . . . . . . . . . . . . 1 Feedback Blocked 2 | . . . . . . 2 . . . . . . . . . . . . . . . Robot Schematics Acquired . | . . . . . . . . . . . . . . . . . . . . . . Robots Built . | . . . . . . . . . . . . . . . . . . . . . . Authchips . | . . . . . . . . . . . . . . . . . . . . . . Time . | . . . . . . . . . . . . . . . . . . . . . . Total Robot Build Rating . | . . . . . . . . . . . . . . . . . . . . . . Part Schematics Acquired 5 | . . . . . . . . . 1 . . . . . . . 4 . . . . Parts Built . | . . . . . . . . . . . . . . . . . . . . . . Authchips . | . . . . . . . . . . . . . . . . . . . . . . Time . | . . . . . . . . . . . . . . . . . . . . . . Total Part Build Rating . | . . . . . . . . . . . . . . . . . . . . . . Parts Repaired 1 | . . . . . . 1 . . . . . . . . . . . . . . . Time 20 | . . . . . . 20 . . . . . . . . . . . . . . . Parts Recycled 1 | . . . . . . . . . 1 . . . . . . . . . . . . Recycled Matter 30 | . . . . . . . . . 30 . . . . . . . . . . . . Retrieved Matter 30 | . . . . . . . . . 30 . . . . . . . . . . . . Retrieved Components 3 | . 2 . . . . . . . 1 . . . . . . . . . . . . Parts Scanalyzed . | . . . . . . . . . . . . . . . . . . . . . . Part Schematics Acquired . | . . . . . . . . . . . . . . . . . . . . . . Parts Damaged . | . . . . . . . . . . . . . . . . . . . . . . Bothacking | -11 -10 -10 -10 -9 -8 -7 -6 -6 -5 -5 -5 -5 -4 -4 -4 -4 -4 -3 -3 -2 -1 ------------ Run | Yrd Mat Min Exi Min Mat Fac Fac DSF Fac Upp Upp War Pro Fac Upp Upp Zhi Pro Res Res Acc Used RIF Installer . | . . . . . . . . . . . . . . . . . . . . . . Robots Hacked 1 | . . . . . . . . . . . . . . . . 1 . . . . . Non-combat . | . . . . . . . . . . . . . . . . . . . . . . Combat 1 | . . . . . . . . . . . . . . . . 1 . . . . . Robot Hacks Applied . | . . . . . . . . . . . . . . . . . . . . . . Relay Couplers Released 1 | . . . . . . . . . . . . . . 1 . . . . . . . Machine Destruction 1 | . . . . . . . . . . . . . . 1 . . . . . . . Fabnet Peak Effective % 3 | . . . . . . . . . . . . . 3 3 3 3 3 1 1 . . Autooverrided 1 | . . . . . . . . . . . . . . . . 1 . . . . . Robots Rewired 1 | . . . . . . . . . 1 . . . . . . . . . . . . Allies Hacked . | . . . . . . . . . . . . . . . . . . . . . . Hacks Repelled . | . . . . . . . . . . . . . . . . . . . . . . Allies | -11 -10 -10 -10 -9 -8 -7 -6 -6 -5 -5 -5 -5 -4 -4 -4 -4 -4 -3 -3 -2 -1 -------- Run | Yrd Mat Min Exi Min Mat Fac Fac DSF Fac Upp Upp War Pro Fac Upp Upp Zhi Pro Res Res Acc Total Allies 17 | . . 4 . . . . . . 3 6 2 . . 1 . 1 . . . . . Largest Group 4 | . . 4 4 3 . . . . 2 3 2 . . 1 . . . . . . . Highest-Rated Group 95 | . . 71 71 40 . . . . 56 95 58 . . 10 . . . . . . . Highest-Rated Ally 85 | . . 31 31 16 . . . . 30 85 29 . . 10 . . . . . . . Total Orders 15 | . . . . . . . . . 1 . . . 3 1 . . . . . 5 5 STAY 2 | . . . . . . . . . 1 . . . . 1 . . . . . . . EXPLORE 13 | . . . . . . . . . . . . . 3 . . . . . . 5 5 Ally Attacks 67 | . . . . 33 . . . . 5 19 10 . . . . . . . . . . Total Damage 931 | . . . . 277 . . . . 177 305 172 . . . . . . . . . . Kills 7 | . . . . 4 . . . . 1 2 . . . . . . . . . . . Allies Corrupted . | . . . . . . . . . . . . . . . . . . . . . . Allies Melted 5 | . . . . . . . . . . . . . . . . . . . . 5 . Intel | -11 -10 -10 -10 -9 -8 -7 -6 -6 -5 -5 -5 -5 -4 -4 -4 -4 -4 -3 -3 -2 -1 ------- Run | Yrd Mat Min Exi Min Mat Fac Fac DSF Fac Upp Upp War Pro Fac Upp Upp Zhi Pro Res Res Acc Robot Analysis Total 11 | . 3 . . . 1 1 . . 3 . . . . . . . 3 . . . . Derelict Logs Recovered 8 | . . 1 . 1 . . . . . 1 1 . 2 . 1 1 . . . . . Drone Launches 13 | . . . . . . . . . . . . . 3 . . . . . . 5 5 Drone Recoveries 9 | . . . . . . . . . . . . . 2 . . . . . . 3 4 Exploration | -11 -10 -10 -10 -9 -8 -7 -6 -6 -5 -5 -5 -5 -4 -4 -4 -4 -4 -3 -3 -2 -1 ------------- Run | Yrd Mat Min Exi Min Mat Fac Fac DSF Fac Upp Upp War Pro Fac Upp Upp Zhi Pro Res Res Acc Turns Passed 9198 | 74 1072 810 1113 356 335 500 196 31 298 177 74 331 175 349 127 248 60 111 954 1088 719 Spaces Moved 13199 | 43 560 587 405 251 387 832 150 32 789 505 228 1047 475 923 691 828 153 341 938 1963 1071 Core 560 | 6 . . . . . 3 . . 3 . . . . . . . . 34 514 . . Treads 376 | 37 339 . . . . . . . . . . . . . . . . . . . . Legs 1821 | . 221 587 405 251 84 33 150 5 . . . . . . . . . . . 85 . Wheels 162 | . . . . . . . . . . . . . . . . . . . 162 . . Hover 168 | . . . . . . 10 . . . . . . . . . . . . 158 . . Flight 10112 | . . . . . 303 786 . 27 786 505 228 1047 475 923 691 828 153 307 104 1878 1071 Fastest Speed 5 | 50 120 120 120 120 27 26 130 25 17 17 17 17 17 12 17 5 17 17 39 13 10 Average Speed 40 | 144 144 120 120 120 47 34 130 45 20 17 17 19 17 14 17 17 17 23 62 22 14 Slowest Speed 190 | 160 190 190 120 190 120 150 130 130 100 17 17 20 17 91 17 23 17 50 150 180 31 Overloaded Moves 29 | . . . . . . . . . 1 . . . . . . 10 . 18 . . . Propulsion Burnouts . | . . . . . . . . . . . . . . . . . . . . . . Robots Hopped 32 | . . . . . 1 3 . 1 14 1 . . . 1 . 3 . . . 2 6 Cave-ins Triggered . | . . . . . . . . . . . . . . . . . . . . . . Teleports 1 | . . . . . . . . . . . . . . . . . . . 1 . . Exploration Rate (%) 50 | 3 89 95 76 48 42 22 6 43 26 69 44 92 67 21 78 83 60 51 18 46 31 Regions Visited 21 Branch Regions 11 Pre-discovered Areas 8 | . . 1 . . . . . . . . . 1 . . 1 1 3 1 . . . Known Exits Taken 6 | . . . . . . . 1 . 1 . . . 1 1 . . . 1 1 . . Unknown Exits Taken 14 | 1 1 1 1 1 1 1 . . . 1 1 1 . . 1 1 1 . . 1 . Scrap Searched 19 | . . 3 . . . . . . . 2 2 . 3 . 2 4 . 3 . . . Spaces Dug 48 | . . . . . 1 6 . . . 6 1 . 1 5 . 13 . . 1 10 4 Terrain Destroyed 89 | . . . . . 12 6 . . . 6 1 . 1 5 . 41 . . 3 10 4 Melee 39 | . . . . . 1 6 . . . 6 1 . 1 5 . 4 . . 1 10 4 Projectile 2 | . . . . . . . . . . . . . . . . . . . 2 . . AOE 48 | . . . . . 11 . . . . . . . . . . 37 . . . . . Terrain Rammed . | . . . . . . . . . . . . . . . . . . . . . . Walls Destroyed . | . . . . . . . . . . . . . . . . . . . . . . Machines Disabled . | . . . . . . . . . . . . . . . . . . . . . . Actions | -11 -10 -10 -10 -9 -8 -7 -6 -6 -5 -5 -5 -5 -4 -4 -4 -4 -4 -3 -3 -2 -1 --------- Run | Yrd Mat Min Exi Min Mat Fac Fac DSF Fac Upp Upp War Pro Fac Upp Upp Zhi Pro Res Res Acc Total 16483 | 52 736 651 1032 285 490 983 150 46 869 588 263 1172 549 1120 700 901 187 366 1209 2586 1548 Wait 2471 | . 110 33 625 10 37 81 . . 37 68 23 119 53 178 6 41 10 10 123 510 397 Move 13116 | 42 559 586 404 250 384 826 149 29 762 502 227 1046 474 920 690 821 152 340 937 1958 1058 Hop 29 | . . . . . 1 2 . 1 12 1 . . . 1 . 3 . . . 2 6 Pick Up 58 | 4 4 1 . 1 2 . . . 2 . 1 1 1 1 . 2 3 1 10 19 5 Fast Attach 161 | 6 7 1 1 4 12 18 1 6 12 1 2 1 4 7 1 5 8 2 28 26 8 Attach 32 | . 2 . . . 4 . . . . . . 1 1 2 . 2 1 . 6 3 10 Detach 36 | . 2 . . 1 2 . . . 1 . 1 . . 1 1 1 2 1 9 11 3 Swap 20 | . . 4 . . 2 . . . . . 1 . . 1 1 1 1 1 1 7 . Drop 118 | . 4 5 2 6 6 3 . 6 3 1 2 1 4 . 1 5 10 3 18 31 7 Fire 125 | . 48 21 . . 2 . . . . . . . . . . 7 . . 43 4 . Melee 282 | . . . . 13 38 53 . . 21 15 6 3 12 9 . 13 . 4 33 15 47 Ram 1 | . . . . . . . . . . . . . . . . . . . 1 . . Kick . | . . . . . . . . . . . . . . . . . . . . . . Crush . | . . . . . . . . . . . . . . . . . . . . . . Escape Stasis 21 | . . . . . . . . 4 6 . . . . . . . . 4 . . 7 Rewire 13 | . . . . . . . . . 13 . . . . . . . . . . . . Trap . | . . . . . . . . . . . . . . . . . . . . . . Miscellaneous . | . . . . . . . . . . . . . . . . . . . . . . Route ------- -11/Scrapyard -10/Materials (discovered 5 exits: [*Mat x3] / [*Min x2]) -10/Mines (discovered 4 exits: [*Mat x2] / *Exi / [*Sub]) -10/Exiles -9/Mines -8/Materials -7/Factory -6/Factory (discovered 2 exits: *Fac / DSF) -6/DSF -5/Factory (discovered 4 exits: *Upp x2 / Ext x2) -5/Upper Caves -5/Upper Caves -5/Warlord -4/Proximity Caves -4/Factory (discovered 2 exits: Res / *Upp) -4/Upper Caves -4/Upper Caves (discovered 2 exits: *Res / *Zhi) -4/Zhirov -3/Proximity Caves -3/Research (discovered 3 exits: *Res x3) -2/Research (discovered 3 exits: *Acc / *Tes x2) -1/Access (discovered 2 exits: *Sur / Com) To Epsilon Eridani History --------- Turn | Location | Event 15 | -11/Scrapyard | Discovered new exit (range 16) 75 | -11/Scrapyard | Entered Materials 158 | -10/Materials | Discovered new exit (range 15) 318 | -10/Materials | Discovered new exit (range 5) 320 | -10/Materials | Build established: Mutant 537 | -10/Materials | Discovered new exit (range 12) 773 | -10/Materials | Central database locked down 782 | -10/Materials | Discovered new exit (range 15) 959 | -10/Materials | Discovered new exit (range 13) 1147 | -10/Materials | Entered Mines 1240 | -10/Mines | Discovered new exit (range 11) 1576 | -10/Mines | Discovered new exit (range 5) 1636 | -10/Mines | Escorted by a lone wolf Derelict 1722 | -10/Mines | Discovered new exit (range 8) 1748 | -10/Mines | Learned location of Storage (-7) 1789 | -10/Mines | Assisted by bots powering up and referring to "LRC-V3" 1820 | -10/Mines | Received a Rocket Launcher from a helpful Derelict 1901 | -10/Mines | Build established: Scavenger-Mutant 1948 | -10/Mines | Deemed a non-threat by the Exiles lab entrance 1948 | -10/Mines | Discovered new exit (range 5) 1957 | -10/Mines | Entered Exiles 1957 | -10/Exiles | Accompanied by 4 allies 2062 | -10/Exiles | Met 8R-AWN 2185 | -10/Exiles | Met EX-HEX 2416 | -10/Exiles | Met EX-DEC 2791 | -10/Exiles | Met EX-BIN 2805 | -10/Exiles | Aligned with FarCom system 2806 | -10/Exiles | Given EX-Vault access code 2836 | -10/Exiles | Opened EX-Vault 2849 | -10/Exiles | Found Longsword +1 2876 | -10/Exiles | Warned to stay clear of 0b10 Research branches 2956 | -10/Exiles | Visited The Gauntlet 3056 | -10/Exiles | Discovered new exit (range 10) 3070 | -10/Exiles | Left Exiles lab with Longsword +1 3070 | -10/Exiles | Entered Mines 3070 | -9/Mines | Accompanied by 3 allies 3111 | -9/Mines | Met a Derelict who couldn't figure out how to use a Trap Extractor 3130 | -9/Mines | Learned location of 1 exit from Proximity Caves 3166 | -9/Mines | Discovered new exit (range 5) 3191 | -9/Mines | Met a Derelict shopkeep closing up shop 3311 | -9/Mines | Found a hidden stash of uninstalled traps 3318 | -9/Mines | Assembled infested the area 3323 | -9/Mines | Assisted by a Guerilla fighting off Assembled 3389 | -9/Mines | Core integrity fell below 50% 3426 | -9/Mines | Entered Materials 3426 | -8/Materials | Evolved 4 slots: Propulsion x2, Utility x2 3561 | -8/Materials | Lost 3 parts (1p1n1u) 3602 | -8/Materials | Garrison activated, responded to threat 3671 | -8/Materials | Destroyed 9 combat bots 3734 | -8/Materials | Central database locked down 3757 | -8/Materials | Discovered new exit (range 9) 3761 | -8/Materials | Entered Factory 3761 | -7/Factory | Evolved 2 slots: Propulsion x2 3917 | -7/Factory | Lost 4 parts (1p3n) 3999 | -7/Factory | Lost 3 parts (3n) 4057 | -7/Factory | Repaired Broken Great Axe 4062 | -7/Factory | Garrison activated, responded to threat 4226 | -7/Factory | Discovered new exit (range 13) 4261 | -7/Factory | Entered another Factory area 4261 | -6/Factory | Evolved 2 slots: Power x1, Utility x1 4403 | -6/Factory | Discovered new exit (range 12) 4455 | -6/Factory | Identified exit to DSF 4457 | -6/Factory | Entered DSF 4480 | -6/DSF | Discovered new exit (range 16) 4488 | -6/DSF | Entered Factory 4488 | -5/Factory | Evolved 2 slots: Propulsion x1, Utility x1 4562 | -5/Factory | Garrison activated, responded to threat 4579 | -5/Factory | Spotted B-75 Beast 4619 | -5/Factory | Lost 5 parts (1p4n) 4662 | -5/Factory | Identified exit to Upper Caves 4662 | -5/Factory | Identified exit to Extension 4767 | -5/Factory | Lost 3 parts (1p2u) 4786 | -5/Factory | Entered Upper Caves 4786 | -5/Upper Caves | Accompanied by 1 ally 4796 | -5/Upper Caves | Spotted B-75 Beast 4833 | -5/Upper Caves | Learned Factory emergency access door positions 4918 | -5/Upper Caves | Discovered new exit (range 13) 4963 | -5/Upper Caves | Entered another Upper Caves area 4965 | -5/Upper Caves | Attracted the attention of an 0b10 checkpoint 4976 | -5/Upper Caves | Learned 12 Factory zone layouts 5033 | -5/Upper Caves | Discovered new exit (range 13) 5037 | -5/Upper Caves | Entered Warlord 5057 | -5/Warlord | Build established: Hacker-Sprinter 5081 | -5/Warlord | Received a Watcher feed algorithm from an ecstatic Tinkerer 5086 | -5/Warlord | Learned location of Testing (-2) 5086 | -5/Warlord | Learned 4 Research zone layouts 5086 | -5/Warlord | Learned Factory fabricator intel 5086 | -5/Warlord | Learned Armory fabricator intel 5189 | -5/Warlord | Warlord's base attacked by MAIN.C 5204 | -5/Warlord | Met Warlord 5235 | -5/Warlord | Found Prototype Energy Cannon 5294 | -5/Warlord | Opened side exit 5367 | -5/Warlord | Discovered new exit (range 9) 5368 | -5/Warlord | Entered Proximity Caves 5369 | -4/Proximity Caves | Identified exit to Factory 5371 | -4/Proximity Caves | Spotter reported a threat 5492 | -4/Proximity Caves | Learned 4 Research zone layouts 5543 | -4/Proximity Caves | Entered Factory 5543 | -4/Factory | Evolved 2 slots: Propulsion x2 5544 | -4/Factory | Identified exit to Research 5545 | -4/Factory | Identified exit to Upper Caves 5547 | -4/Factory | Loaded intel: 6 fabricator locations 5793 | -4/Factory | Search patrols dispatched 5892 | -4/Factory | Entered Upper Caves 5942 | -4/Upper Caves | Learned location of Quarantine (-3) 5966 | -4/Upper Caves | Discovered new exit (range 9) 6019 | -4/Upper Caves | Entered another Upper Caves area 6040 | -4/Upper Caves | Learned location of Armory (-4) 6077 | -4/Upper Caves | Attracted the attention of an 0b10 outpost 6079 | -4/Upper Caves | Discovered exit to Research (range 8) 6182 | -4/Upper Caves | Attracted the attention of an 0b10 checkpoint 6266 | -4/Upper Caves | Discovered new exit (range 11) 6267 | -4/Upper Caves | Entered Zhirov 6267 | -4/Zhirov | Discovered new exit (range 3) 6271 | -4/Zhirov | Met Zhirov 6274 | -4/Zhirov | Learned location of Command (-1) 6275 | -4/Zhirov | Zhirov requested help retrieving the SGEMP Prototype 6279 | -4/Zhirov | Found Alien Artifact 6284 | -4/Zhirov | Found Alien Artifact 6284 | -4/Zhirov | Identified Integrated Dissipator 6284 | -4/Zhirov | Installed Integrated Dissipator, increased core heat dissipation (+20) 6327 | -4/Zhirov | Entered Proximity Caves 6348 | -3/Proximity Caves | Learned Research security intel 6348 | -3/Proximity Caves | Learned Research garrison access intel 6425 | -3/Proximity Caves | Core integrity fell below 50% 6431 | -3/Proximity Caves | Core integrity fell below 20% 6432 | -3/Proximity Caves | Discovered exit to Research (range 15) 6438 | -3/Proximity Caves | Entered Research 6438 | -3/Research | Evolved 2 slots: Propulsion x2 6439 | -3/Research | Identified exit to Research 6441 | -3/Research | Loaded intel: 4 garrison access locations 6453 | -3/Research | Lost 12 parts (1p7n3u1w) 6691 | -3/Research | Build established: Hacker-Mutant 6937 | -3/Research | System corruption reached 10% 6937 | -3/Research | Identified Vortex Cannon 6974 | -3/Research | Identified Transdimensional Reconstructor 6974 | -3/Research | Warped through subspace 7004 | -3/Research | Lost 9 parts (2p3n2u2w) 7381 | -3/Research | Central database locked down 7392 | -3/Research | Entered another Research area 7392 | -2/Research | Warlord forces began assault on 0b10 7392 | -2/Research | Evolved 2 slots: Propulsion x1, Utility x1 7393 | -2/Research | Identified exit to Testing 7440 | -2/Research | Spotted B-90 Cyclops 7449 | -2/Research | Found Prototype Device 7449 | -2/Research | Identified Exp. Shock Absorption System 7502 | -2/Research | Research machine network offline 7749 | -2/Research | Discovered new exit (range 17) 7754 | -2/Research | Discovered exit to Testing (range 17) 7756 | -2/Research | Spotted Executioner 7758 | -2/Research | Found Prototype Processor 7758 | -2/Research | Identified Exp. Targeting Computer 7760 | -2/Research | Found Prototype Processor 7760 | -2/Research | Identified Exp. Core Analyzer 7793 | -2/Research | Borebot progress halted 7832 | -2/Research | Borebot progress halted 7842 | -2/Research | Borebot progress halted 7860 | -2/Research | Spotted B-90 Cyclops 8034 | -2/Research | Build established: Hacker-Sprinter 8179 | -2/Research | Spotted Executioner 8316 | -2/Research | Met up with Warlord 8342 | -2/Research | Spotted Executioner 8343 | -2/Research | Spotted Executioner 8392 | -2/Research | Warlord invited to help at Command 8409 | -2/Research | Spotted Striker 8444 | -2/Research | Spotted Executioner 8444 | -2/Research | Spotted Executioner 8479 | -2/Research | System corruption reached 10% 8480 | -2/Research | Entered Access 8480 | -1/Access | Evolved 2 slots: Propulsion x1, Utility x1 8953 | -1/Access | Identified exit to Command 8953 | -1/Access | Adv. Hacking Suite fried by hacking feedback 9060 | -1/Access | System corruption reached 10% 9077 | -1/Access | Found Exp. Core Analyzer 9102 | -1/Access | Lost 11 parts (8n3u) 9123 | -1/Access | Identified exit to Surface 9199 | *** | Escaped! Last Messages --------------- 09192_ Slug penetrates Wall. 09192_ Penetrated by Slug. 09192_ Impulse Thruster destroyed. 09192_ U-05 Engineer destroyed. 09193_ Slug penetrates H-88 Terminator. 09193_ K-01 Serf cleans the Terminal. 09195_ Slug penetrates Sealed Barrier. 09195_ Penetrated by Slug. 09195_ Impulse Thruster Array destroyed. 09195_ Impulse Thruster destroyed. 09195_ Dropped Lrg. Storage Unit. 09196_ Penetrated by Slug. 09196_ Slug penetrates Sealed Barrier. 09197_ Slug penetrates Terminal. 09197_ Connecting with Terminal... >>Open(Door) Sealed Barrier opened. 09197_ ALERT: Suspicious activity at Terminal A001. Dispatching Investigation squad. 09198_ The Access Shell folds into the floor. Map ----- +----------------------------------------------------+ | ??????# !#################### #????????# | | ??????# # # #????????+ | | ??????# " # [# #????????# | | ??????# """" # " # #????????# | | ??????# """"" # """ # #????????# | | ??????# """"" # """ # #????????# | | ??????# """" # " # #????????# | | ??????# " # ""T"" + #????????# | | ??????# # """"" # #????????# | | ??????# #################### #????????# | | ###########+###################### ########## | | |%= h hh | | !*! pph #?? | | ??##########/######## ""####### #?? | | ?????# #?# ""#?????#w #?? | | ?????# #?# ""#?????# #?? | | ?????# """"" #?# !] T#?????# #?? | | ?????# ""R"" #?# ]!! ""#?????# " " #?? | | ?????# " " #?# * ""#?????# "Y" #?? | | ?????# ### ""##????# """ #?? | | ?????# ## #????# ########?? | | ?????# ### ##????# #????????? | | ?????# #?# #?????# #????????? | | ?????# #?# #?????#C #????????? | | ?????# ? #?# #?????# ########## | | ?????# ? #?# @" #?????# | | ?????#???##########?# "" #?????# | | ????????????????????# #?????# ######## | | ????????????????????# #?????# #??????? | | ????????????????????# #?????# #??????? | | ????????????????????#""""""""""#?????# #??????? | | ?????????????????????????????????????# #??????? | | ?????????????????????????????????????# #??????? | | ?????????g???????????????????????????#w #??????? | | ?????????????????????????????????????# #??????? | | ??????????????????????BB?????????????# #??????? | | ??????????????????????BB?????????????# #??????? | | ?????????????????????????????????????# #??????? | | ?????????????????????????????????????# #??????? | | ?????????????????????????????????????# +??????? | | ?????????????????????????????????????# #??????? | | ?????????????????????????????????????# #??????? | | ?????????????????????????????????????# #??????? | | ???????????????????????? ########## #??????? | | ???????????????????????? #??????? | | ???????????????????????? #??????? | | ???????????????????????? #??????? | | ???????????????????????? ##?????? | | ????????????????????????? ############## ####### | | ?????????????????????????????????????????## | +----------------------------------------------------+ Best States ------------- Heat Dissipation 94 Energy Generation 49 Energy Capacity 715 Matter Stores 300 Matter Capacity 300 Sight Range 16 Terrain Scan Density 10 Jamming Range 14 Power Amplification 30 Armor Coverage 225 Resistance: KI 25 Resistance: TH 25 Resistance: EX 75 Core Shielding 40 Propulsion Shielding 66 Evasion (%) 79 Melee Accuracy 10 Launcher Accuracy 20 Core Analysis 12 Armor Integrity Analysis 40 Recoil Reduction 2 Offensive Hacking 28 Defensive Hacking 38 Item Schematics ----------------- Imp. Cloaking Device | -5/Factory | Hacked Assault Drone Bay | -4/Zhirov | Free Exp. Heat Sink | -4/Zhirov | Free Exp. Optical Array | -4/Zhirov | Free Imp. Arc Thrower | -4/Zhirov | Free Robot Schematics ------------------ None Fabricated ------------ Nothing Alien Tech Used ----------------- Integrated Dissipator Transdimensional Reconstructor Achievements -------------- None Challenges ------------ None Game ------ Seed PulseLightLoader Manual? 0 Play Time 02:43:32 Cumulative 92.8 hours Start 2024.04.05 @ 21:35:02 End 2024.04.06 @ 07:58:38 Sessions 3 Manual Loads 0 Difficulty Rogue Special Mode None Game No. 82 Rogue 82 Adventurer 0 Explorer 0 Win Type 0 Total 1 Types 1/0/0/0/0/0/0/0/0 Lore% 47 Gallery% 56 Achievement% 58 Wizard Run 0 Options --------- Layout 2 ASCII 1 Keyboard 1 Movement Vi Keybinds 0 Fullscreen 1 Font 24/Smallcaps Map View 50x44 Zoom Use 0% Tactical HUD 1 Map Filters NONE Filters NONE Steam 1 RUN: b1b8b42c-7911-475f-a0c7-649e7d3ae799